bitfinex/quotes_SOLUSD_20250721
["timestamp","ask_amount","ask_price","bid_price","bid_amount"]
[1753111555959,32.58511009,197.81,197.8,0.03]
[1753111556653,16.78468397,197.81,197.8,0.03]
[1753111557834,32.08120483,197.81,197.8,0.03]
[1753111558347,21.84004011,197.81,197.8,0.03]
[1753111559255,32.08120483,197.81,197.8,0.03]
[1753111559847,21.84004011,197.81,197.8,0.03]
[1753111560654,0.50390526,197.82,197.8,0.03]
[1753111560851,0.50390526,197.87,197.8,0.71]
[1753111561021,38.68,197.88,197.84,10.24116472]
[1753111561222,38.68,197.92,197.85,0.68]
[1753111561427,38.68,197.92,197.88,10.24116472]
[1753111561636,38.68,197.92,197.87,10.24116472]
[1753111561851,10.24116472,197.9,197.88,26.0]
[1753111562030,0.7,197.95,197.86,26.0]
[1753111562237,0.50390526,197.96,197.92,10.24116472]
[1753111562429,0.06,197.97,197.89,26.0]
[1753111562430,0.56390526,197.97,197.93,10.24116472]
[1753111562634,0.56390526,197.97,197.93,10.92116472]
[1753111562963,16.78468397,197.93,197.86,10.24116472]
[1753111563252,27.02584869,197.91,197.87,26.0]
[1753111563422,16.78468397,197.87,197.83,26.0]
[1753111563626,10.74506998,197.88,197.82,10.24116472]
[1753111563940,0.7,197.95,197.86,10.24116472]
[1753111564132,0.7,197.95,197.87,10.24116472]
[1753111564133,16.78468397,197.92,197.87,10.24116472]
[1753111564325,27.52975395,197.92,197.87,10.24116472]
[1753111564524,10.24116472,197.89,197.84,26.0]
[1753111564947,10.24116472,197.89,197.78,0.03]
[1753111564948,16.78468397,197.84,197.78,0.03]
[1753111565249,27.02584869,197.81,197.8,1e-08]
[1753111565749,16.78468397,197.8,197.76,0.03]
[1753111566047,21.84157398,197.75,197.66,0.1]
[1753111566239,71.24664396,197.75,197.66,0.1]
[1753111566440,16.78468397,197.74,197.66,0.1]
[1753111566752,27.02584869,197.67,197.66,0.1]
[1753111567148,27.52975395,197.67,197.66,0.1]
[1753111567449,28.22975395,197.67,197.66,0.1]
[1753111567637,16.78468397,197.66,197.57,8.92116472]
[1753111567945,27.02584869,197.64,197.58,10.24116472]
[1753111568257,10.24116472,197.61,197.55,10.24116472]
[1753111568455,16.78468397,197.62,197.5,6.0592]
[1753111568456,10.74506998,197.6,197.54,10.24116472]
[1753111568747,10.74506998,197.6,197.5,6.0592]
[1753111568748,27.02584869,197.59,197.5,6.0592]
[1753111568954,10.74506998,197.58,197.5,6.0592]
[1753111569148,0.50390526,197.58,197.5,6.0592]
[1753111569331,27.52975395,197.59,197.53,10.24116472]
[1753111569527,10.24116472,197.58,197.53,10.24116472]
[1753111569941,27.52975395,197.57,197.5,0.68]
[1753111570247,16.78468397,197.55,197.45,0.68]
[1753111570437,16.78468397,197.53,197.49,10.24116472]
[1753111570747,16.78468397,197.53,197.37,10.0]
[1753111570748,1.20390526,197.52,197.42,5.74534292]
[1753111570949,39.16390526,197.53,197.48,10.24116472]
[1753111571250,39.16390526,197.53,197.46,10.24116472]
[1753111571251,27.02584869,197.52,197.46,10.24116472]
[1753111571549,16.78468397,197.5,197.45,10.24116472]
[1753111571885,17.28858923,197.5,197.44,0.68]
[1753111572062,0.50390526,197.5,197.48,10.24116472]
[1753111572262,55.44468397,197.53,197.49,26.0]
[1753111572555,10.74506998,197.52,197.49,26.0]
[1753111572727,0.50390526,197.52,197.5,26.0]
[1753111572926,0.7,197.51,197.37,0.50666261]
[1753111573142,32.38241343,197.49,197.38,17.73219757]
[1753111573346,0.50390526,197.48,197.43,15.59772946]
[1753111573544,71.54631869,197.5,197.44,41.59772946]
[1753111573739,15.59772946,197.47,197.38,5.06636943]
[1753111573933,17.48468397,197.48,197.41,15.59772946]
[1753111574134,17.48468397,197.48,197.4,5.06574089]
[1753111574135,32.38241343,197.46,197.4,5.06574089]
[1753111574340,16.78468397,197.46,197.41,15.59772946]
[1753111574541,16.10163472,197.47,197.43,15.59772946]
[1753111574542,0.50390526,197.47,197.43,15.59772946]
[1753111574938,16.78468397,197.49,197.45,15.59772946]
[1753111574939,0.50390526,197.48,197.45,15.59772946]
[1753111575132,0.50390526,197.48,197.43,0.62]
[1753111575332,0.50390526,197.48,197.44,15.59772946]
[1753111575539,16.78468397,197.51,197.46,15.59772946]
[1753111575734,16.78468397,197.51,197.35,26.78468397]
[1753111575735,23.26768397,197.46,197.29,12.6713727]
[1753111575942,0.50390526,197.45,197.42,15.59772946]
[1753111576152,0.7,197.5,197.44,15.59772946]
[1753111576153,16.78468397,197.49,197.44,15.59772946]
[1753111576451,16.78468397,197.49,197.44,0.62]
[1753111576633,16.78468397,197.51,197.48,15.59772946]
[1753111576834,0.50390526,197.5,197.46,15.59772946]
[1753111577055,16.78468397,197.51,197.43,26.50650863]
[1753111577056,0.50390526,197.52,197.51,26.0]
[1753111577365,11.76003659,197.63,197.51,1.12630347]
[1753111577537,15.59772946,197.62,197.56,15.59772946]
[1753111577858,0.50390526,197.61,197.56,14.99772946]
[1753111578067,16.78468397,197.59,197.51,26.62]
[1753111578353,16.78468397,197.59,197.47,3.405]
[1753111578354,16.78468397,197.56,197.47,3.405]
[1753111578559,15.59772946,197.56,197.51,26.0]
[1753111578858,17.28858923,197.58,197.53,15.59772946]
[1753111579040,17.28858923,197.58,197.54,15.59772946]
[1753111579754,0.50390526,197.59,197.54,41.59772946]
[1753111580050,0.50390526,197.6,197.55,15.59772946]
[1753111580240,0.50390526,197.6,197.54,26.0]
[1753111580241,0.50390526,197.6,197.56,15.59772946]
[1753111581439,0.50390526,197.6,197.55,15.59772946]
[1753111581755,0.50390526,197.6,197.55,41.59772946]
[1753111581960,0.50390526,197.6,197.55,26.0]
[1753111582135,15.59772946,197.57,197.55,26.0]
[1753111582333,5.56468363,197.6,197.49,15.59772946]
[1753111582334,33.58631869,197.56,197.49,15.59772946]
[1753111582540,15.59772946,197.55,197.49,15.59772946]
[1753111583034,15.59772946,197.55,197.52,26.0]
[1753111583234,33.58631869,197.56,197.53,26.0]
[1753111583538,0.50390526,197.59,197.55,15.59772946]
[1753111583761,0.50390526,197.6,197.57,15.59772946]
[1753111583970,20.65745691,197.64,197.58,15.59772946]
[1753111584172,17.28858923,197.63,197.58,15.59772946]
[1753111584770,17.28858923,197.63,197.56,26.0]
[1753111584940,32.88631869,197.63,197.56,26.0]
[1753111585259,32.88631869,197.63,197.58,15.59772946]
[1753111585482,0.50390526,197.73,197.66,26.0]
[1753111585768,0.50390526,197.73,197.63,5.05996053]
[1753111585769,0.50390526,197.76,197.72,15.59772946]
[1753111586066,0.7,197.78,197.72,26.0]
[1753111586067,0.50390526,197.78,197.72,26.0]
[1753111586359,0.50390526,197.78,197.74,15.59772946]
[1753111586746,16.78468397,197.76,197.74,15.59772946]
[1753111586938,16.78468397,197.74,197.71,26.0]
[1753111587137,1.20390526,197.75,197.73,15.59772946]
[1753111587341,16.78468397,197.74,197.65,0.62]
[1753111587573,16.78468397,197.74,197.63,11.50196053]
[1753111587574,16.78468397,197.72,197.67,15.59772946]
[1753111587742,16.78468397,197.7,197.68,15.59772946]
[1753111587943,16.78468397,197.7,197.69,15.59772946]
[1753111588161,16.78468397,197.7,197.68,15.59772946]
[1753111588366,16.78468397,197.68,197.65,26.0]
[1753111588666,16.78468397,197.68,197.57,6.615]
[1753111588667,32.38241343,197.66,197.61,15.59772946]
[1753111588856,16.78468397,197.64,197.59,15.59772946]
[1753111589043,15.59772946,197.63,197.57,5.68149647]
[1753111589368,15.59772946,197.61,197.54,26.62]
[1753111589547,15.59772946,197.63,197.58,15.59772946]
[1753111589755,15.59772946,197.63,197.6,26.0]
[1753111589949,0.50390526,197.62,197.6,26.0]
[1753111590263,15.59772946,197.61,197.59,26.0]
[1753111590441,15.59772946,197.61,197.55,5.06200376]
[1753111590685,15.59772946,197.62,197.57,15.59772946]
[1753111591070,16.78468397,197.67,197.58,26.62]
[1753111591381,16.78468397,197.67,197.63,15.59772946]
[1753111592069,16.78468397,197.67,197.64,15.59772946]
[1753111592270,17.28858923,197.68,197.63,15.59772946]
[1753111592988,16.78468397,197.65,197.61,26.0]
[1753111593303,17.28858923,197.65,197.61,26.0]
[1753111593979,0.68,197.67,197.61,31.06047264]
[1753111593980,0.06,197.62,197.61,31.06047264]
[1753111594180,0.06,197.62,197.61,41.59772946]
[1753111596184,0.06,197.62,197.57,0.50614971]
[1753111596386,0.06,197.62,197.6,15.59772946]
[1753111596670,0.06,197.62,197.61,15.59772946]
[1753111597186,0.06,197.62,197.59,15.59772946]
[1753111597503,0.06,197.62,197.55,54.19772946]
[1753111597504,21.33831387,197.61,197.55,54.19772946]
[1753111597677,0.50390526,197.6,197.55,54.19772946]
[1753111597987,0.50390526,197.6,197.52,5.06277845]
[1753111598174,16.10163472,197.6,197.58,26.0]
[1753111598375,0.68,197.59,197.57,26.0]
[1753111598591,1.18390526,197.59,197.54,15.59772946]
[1753111598806,32.38241343,197.58,197.53,15.59772946]
[1753111598995,0.50390526,197.59,197.54,15.59772946]
[1753111599380,0.50390526,197.59,197.5,39.22]
[1753111599381,17.28858923,197.6,197.55,15.59772946]
[1753111599896,0.50390526,197.61,197.57,15.59772946]
[1753111600103,21.90492057,197.62,197.55,0.62]
[1753111600301,0.68,197.61,197.56,15.59772946]
[1753111600594,0.68,197.61,197.57,26.0]
[1753111600797,0.06,197.62,197.57,26.0]
[1753111601003,0.06,197.62,197.61,15.59772946]
[1753111601203,0.06,197.62,197.61,26.0]
[1753111601386,0.06,197.62,197.61,41.59772946]
[1753111602390,0.06,197.62,197.6,15.59772946]
[1753111602591,0.06,197.62,197.54,43.66206013]
[1753111602592,0.68,197.61,197.54,43.66206013]
[1753111602898,0.68,197.61,197.57,26.0]
[1753111603397,16.78468397,197.6,197.57,26.0]
[1753111603912,0.06,197.62,197.59,15.59772946]
[1753111604204,0.06,197.62,197.6,15.59772946]
[1753111604377,0.06,197.62,197.57,31.6814622]
[1753111604581,0.06,197.62,197.46,5.06431682]
[1753111604582,42.1792,197.61,197.46,5.06431682]
[1753111604778,16.78468397,197.57,197.52,15.59772946]
[1753111605000,16.78468397,197.57,197.47,0.62]
[1753111605001,16.78468397,197.59,197.54,15.59772946]
[1753111605204,16.78468397,197.61,197.51,0.62]
[1753111605501,32.38241343,197.61,197.56,15.59772946]
[1753111605676,32.38241343,197.61,197.53,26.0]
[1753111605677,0.68,197.6,197.55,15.59772946]
[1753111606073,0.06,197.62,197.57,15.59772946]
[1753111606278,16.84468397,197.62,197.59,15.59772946]
[1753111606506,16.84468397,197.62,197.55,26.62]
[1753111606796,16.78468397,197.61,197.56,15.59772946]
[1753111606975,0.68,197.6,197.51,0.62]
[1753111607182,16.78468397,197.59,197.54,26.0]
[1753111607381,16.78468397,197.59,197.54,41.59772946]
[1753111607594,16.78468397,197.59,197.54,26.0]
[1753111607902,16.78468397,197.59,197.47,15.59772946]
[1753111607903,37.44442304,197.55,197.47,15.59772946]
[1753111608109,15.59772946,197.52,197.46,15.59772946]
[1753111608280,16.78468397,197.5,197.45,15.59772946]
[1753111608607,16.78468397,197.48,197.4,43.67585306]
[1753111608803,16.78468397,197.48,197.44,15.59772946]
[1753111609189,0.68,197.47,197.43,15.59772946]
[1753111609505,16.78468397,197.46,197.44,15.59772946]
[1753111609680,16.78468397,197.46,197.4,0.03]
[1753111609885,16.78468397,197.48,197.44,15.59772946]
[1753111610092,16.78468397,197.48,197.45,15.59772946]
[1753111610378,32.38241343,197.49,197.44,15.59772946]
[1753111610598,40.77224312,197.57,197.44,15.59772946]
[1753111610902,40.77224312,197.57,197.4,5.09579226]
[1753111610903,16.78468397,197.5,197.46,15.59772946]
[1753111611207,16.78468397,197.48,197.44,15.59772946]
[1753111611590,15.59772946,197.48,197.43,26.0]
[1753111611800,16.78468397,197.46,197.4,0.03]
[1753111612100,16.78468397,197.5,197.45,15.59772946]
[1753111612299,16.78468397,197.48,197.45,15.59772946]
[1753111612502,5.06277845,197.52,197.4,0.03]
[1753111612503,16.78468397,197.54,197.5,26.0]
[1753111612708,16.78468397,197.55,197.5,41.59772946]
[1753111612877,33.06241343,197.55,197.5,41.59772946]
[1753111613081,16.27772946,197.54,197.48,26.0]
[1753111613302,0.68,197.54,197.5,15.59772946]
[1753111613995,0.68,197.54,197.26,0.32243315]
[1753111613996,16.78468397,197.52,197.26,0.32243315]
[1753111614195,1.19043955,197.53,196.91,35.62]
[1753111614196,2.63204288,197.17,197.0,0.72]
[1753111614483,16.78468397,197.06,197.01,15.59772946]
[1753111614683,2.63204288,197.17,197.02,0.72]
[1753111614684,0.51043955,197.05,197.02,0.72]
[1753111614898,0.51043955,197.07,197.03,40.3]
[1753111615106,0.51043955,197.07,196.92,0.50782043]
[1753111615107,0.51043955,197.07,197.04,40.3]
[1753111615286,2.63204288,197.17,196.92,0.50782043]
[1753111615287,0.51043955,197.08,197.05,0.72]
[1753111615488,2.63204288,197.17,197.06,16.31772946]
[1753111615489,0.51043955,197.07,197.06,16.31772946]
[1753111615688,10.0,197.12,197.06,40.3]
[1753111615888,16.78468397,197.14,197.07,0.72]
[1753111616210,10.0,197.11,197.08,39.64]
[1753111616416,10.0,197.12,197.09,0.72]
[1753111616613,10.0,197.12,197.1,0.72]
[1753111616803,10.0,197.11,197.07,0.72]
[1753111617108,16.78468397,197.11,197.08,0.72]
[1753111617290,16.78468397,197.11,197.09,39.64]
[1753111617291,10.51043955,197.1,197.09,39.64]
[1753111617492,10.0,197.1,197.08,26.0]
[1753111617791,27.29512352,197.11,197.09,26.72]
[1753111617990,16.78468397,197.16,197.13,26.0]
[1753111618293,16.78468397,197.16,197.13,0.72]
[1753111618294,10.0,197.14,197.13,0.72]
[1753111618494,16.78468397,197.14,197.09,16.31772946]
[1753111618689,42.89285298,197.14,197.1,39.64]
[1753111618891,10.0,197.13,197.11,40.36]
[1753111619119,0.51043955,197.14,197.11,0.72]
[1753111619120,10.0,197.12,197.11,0.72]
[1753111619494,10.0,197.13,197.11,55.95772946]
[1753111619704,26.78468397,197.14,197.12,0.72]
[1753111619912,10.0,197.14,197.13,39.62]
[1753111620300,10.51043955,197.17,197.13,55.93772946]
[1753111620514,10.0,197.17,197.15,15.59772946]
[1753111620811,10.0,197.2,197.16,15.59772946]
[1753111621017,0.51043955,197.23,197.16,15.59772946]
[1753111621018,10.0,197.22,197.18,15.59772946]
[1753111621220,10.0,197.21,197.2,26.0]
[1753111621791,10.0,197.21,197.2,40.27]
[1753111622014,10.0,197.25,197.2,55.86772946]
[1753111622310,14.9243815,197.37,197.18,26.0]
[1753111622311,10.0,197.24,197.23,26.0]
[1753111622514,10.0,197.32,197.23,82.35475171]
[1753111622813,16.10816901,197.36,197.23,82.35475171]
[1753111622814,10.0,197.35,197.27,26.0]
[1753111623125,0.51043955,197.36,197.2,17.74838012]
[1753111623126,10.0,197.3,197.28,39.56]
[1753111623294,10.0,197.3,197.2,5.07089534]
[1753111623295,16.78468397,197.28,197.24,16.28772946]
[1753111623494,10.0,197.25,197.24,15.59772946]
[1753111623690,10.0,197.26,197.24,16.28772946]
[1753111623915,26.78468397,197.28,197.25,55.84772946]
[1753111624217,26.78468397,197.28,197.27,15.59772946]
[1753111624438,26.78468397,197.28,197.27,16.28772946]
[1753111624607,0.51043955,197.32,197.2,5.07099391]
[1753111624608,10.0,197.27,197.2,5.07099391]
[1753111624810,16.78468397,197.29,197.19,26.5071251]
[1753111624811,10.0,197.25,197.24,26.0]
[1753111625006,10.0,197.25,197.2,0.69]
[1753111625320,10.0,197.25,197.13,12.68162496]
[1753111625321,10.0,197.24,197.23,26.0]
[1753111625893,10.0,197.24,197.23,66.25]
[1753111626093,10.0,197.25,197.23,81.84772946]
[1753111626314,10.0,197.25,197.24,16.28772946]
[1753111626515,26.78468397,197.26,197.24,55.82772946]
[1753111626695,10.0,197.27,197.25,16.28772946]
[1753111626896,10.0,197.3,197.28,26.0]
[1753111627111,10.0,197.31,197.29,16.28772946]
[1753111627310,10.0,197.31,197.3,16.28772946]
[1753111627496,0.51043955,197.33,197.3,16.28772946]
[1753111627497,10.0,197.33,197.3,16.28772946]
[1753111627693,26.78468397,197.32,197.31,39.5]
[1753111628127,10.0,197.32,197.31,55.78772946]
[1753111628331,10.0,197.32,197.31,40.19]
[1753111628704,10.0,197.32,197.31,55.78772946]
[1753111629109,10.0,197.33,197.31,60.85578375]
[1753111629311,10.0,197.33,197.31,55.78772946]
[1753111629519,10.0,197.32,197.31,55.78772946]
[1753111629717,10.0,197.33,197.31,55.09772946]
[1753111629915,10.0,197.33,197.32,39.44]
[1753111630115,10.0,197.33,197.32,39.42]
[1753111630421,10.0,197.33,197.32,39.16654]
[1753111630822,10.0,197.33,197.32,39.42]
[1753111631208,10.0,197.39,197.35,26.0]
[1753111631406,0.59,197.46,197.35,26.0]
[1753111631407,10.0,197.41,197.36,0.69]
[1753111631611,10.0,197.37,197.35,26.0]
[1753111631840,10.0,197.37,197.36,39.42]
[1753111632006,0.51043955,197.47,197.36,40.11]
[1753111632007,10.0,197.38,197.36,40.11]
[1753111632210,10.0,197.37,197.36,16.28772946]
[1753111632421,10.0,197.37,197.36,55.72772946]
[1753111632638,10.0,197.37,197.36,15.59772946]
[1753111632818,10.0,197.37,197.36,39.44]
[1753111633019,16.78468397,197.36,197.33,0.69]
[1753111633235,26.78468397,197.36,197.35,26.0]
[1753111633416,16.78468397,197.36,197.35,26.0]
[1753111633618,26.78468397,197.36,197.35,65.4]
[1753111633922,16.78468397,197.36,197.33,0.69]
[1753111634120,26.78468397,197.36,197.27,0.50691945]
[1753111634321,10.0,197.31,197.28,54.97772946]
[1753111634518,10.0,197.3,197.28,39.38]
[1753111634713,10.0,197.31,197.28,40.07]
[1753111635131,16.78468397,197.29,197.26,15.59772946]
[1753111635327,16.78468397,197.29,197.27,39.36]
[1753111635938,16.78468397,197.29,197.21,12.67646583]
[1753111635939,16.78468397,197.27,197.21,0.69]
[1753111636147,10.0,197.26,197.22,15.59772946]
[1753111636322,12.66783261,197.36,197.22,15.59772946]
[1753111636323,10.0,197.29,197.27,26.0]
[1753111636514,26.78468397,197.32,197.28,16.28772946]
[1753111636831,16.78468397,197.31,197.3,15.59772946]
[1753111637021,10.0,197.3,197.29,16.28772946]
[1753111637218,10.0,197.3,197.29,5.75859767]
[1753111637534,10.0,197.3,197.2,0.50709939]
[1753111637535,26.78468397,197.29,197.2,5.57798828]
[1753111637737,10.0,197.23,197.2,60.69861835]
[1753111638039,10.0,197.23,197.18,5.07150826]
[1753111638337,16.78468397,197.22,197.21,26.0]
[1753111638515,16.78468397,197.22,197.19,0.69]
[1753111638715,0.51043955,197.23,197.2,16.28772946]
[1753111638923,10.0,197.25,197.22,26.0]
[1753111639124,16.78468397,197.24,197.23,31.07022258]
[1753111639414,26.78468397,197.24,197.23,31.07022258]
[1753111639616,10.0,197.26,197.23,46.66795204]
[1753111639827,10.0,197.24,197.21,26.0]
[1753111640035,16.78468397,197.25,197.23,26.0]
[1753111640244,10.0,197.24,197.23,26.0]
[1753111640433,26.78468397,197.24,197.18,5.76125905]
[1753111640638,16.78468397,197.22,197.21,26.0]
[1753111641035,16.78468397,197.23,197.22,26.0]
[1753111641233,27.29512352,197.23,197.18,45.08125905]
[1753111641542,10.0,197.21,197.2,26.0]
[1753111641738,10.0,197.22,197.18,71.08125905]
[1753111642040,26.78468397,197.21,197.2,26.0]
[1753111642418,16.78468397,197.21,197.2,26.0]
[1753111642616,26.78468397,197.21,197.2,26.0]
[1753111642932,10.0,197.18,197.17,39.28]
[1753111643524,16.10816901,197.2,197.12,15.59772946]
[1753111643525,26.78468397,197.17,197.12,15.59772946]
[1753111643723,16.78468397,197.15,197.12,39.95]
[1753111643919,16.78468397,197.15,197.1,0.03]
[1753111643920,16.78468397,197.13,197.1,0.03]
[1753111644233,42.38241343,197.11,197.1,0.03]
[1753111644542,26.78468397,197.11,197.1,0.03]
[1753111644932,16.78468397,197.11,197.1,5.10356671]
[1753111645130,50.70788102,197.19,197.1,5.79356671]
[1753111645131,10.0,197.13,197.1,5.79356671]
[1753111645348,10.0,197.12,197.1,21.39129617]
[1753111645543,17.29512352,197.15,197.1,21.39129617]
[1753111645544,10.0,197.15,197.13,26.0]
[1753111645735,10.0,197.19,197.14,16.28772946]
[1753111645937,16.78468397,197.19,197.17,41.59772946]
[1753111646140,10.0,197.19,197.17,41.59772946]
[1753111646327,10.0,197.19,197.18,26.0]
[1753111647043,10.0,197.2,197.18,26.0]
[1753111647249,43.48285298,197.19,197.1,0.72]
[1753111647432,10.0,197.13,197.11,15.59772946]
[1753111647637,10.0,197.14,197.1,55.49772946]
[1753111647854,10.0,197.12,197.1,39.9]
[1753111648028,10.0,197.12,197.11,16.28772946]
[1753111648222,10.0,197.13,197.11,16.28772946]
[1753111648453,0.51043955,197.15,197.11,16.28772946]
[1753111648454,10.0,197.12,197.11,0.69]
[1753111648749,10.0,197.13,197.11,16.28772946]
[1753111648954,10.0,197.13,197.12,41.59772946]
[1753111649134,26.78468397,197.13,197.1,0.03]
[1753111649322,10.0,197.11,197.1,5.10356671]
[1753111649522,10.0,197.11,197.1,0.03]
[1753111649729,42.38241343,197.11,197.1,0.03]
[1753111650027,27.37468397,197.11,197.1,0.03]
[1753111650227,42.97241343,197.11,197.1,0.03]
[1753111650631,27.88512352,197.11,197.1,0.03]
[1753111650856,42.89285298,197.11,197.1,0.03]
[1753111651030,27.29512352,197.11,197.1,0.03]
[1753111652154,26.78468397,197.11,197.1,0.03]
[1753111654142,27.29512352,197.11,197.1,0.03]
[1753111654355,10.0,197.11,197.1,0.03]
[1753111654849,26.78468397,197.11,197.1,0.03]
[1753111655834,42.38241343,197.11,197.1,0.03]
[1753111656037,26.78468397,197.11,197.1,0.03]
[1753111657445,27.29512352,197.11,197.1,0.03]
[1753111658148,10.0,197.14,197.1,0.7]
[1753111658352,42.38241343,197.11,197.1,0.03]
[1753111659265,46.13406799,197.11,197.1,0.03]
[1753111659550,36.71008739,197.11,197.1,0.03]
[1753111659752,52.30781685,197.11,197.1,0.03]
[1753111660133,47.23450754,197.11,197.1,0.03]
[1753111660534,52.30781685,197.11,197.1,0.03]
[1753111661361,88.39336068,197.11,196.99,0.23994218]
[1753111661536,10.0,197.0,196.99,0.90994218]
[1753111661737,10.0,197.0,196.99,0.23994218]
[1753111662007,26.78468397,197.0,196.99,0.23994218]
[1753111662564,10.0,197.0,196.99,0.23994218]
[1753111663454,10.51043955,197.0,196.99,0.23994218]
[1753111663833,10.0,197.0,196.99,21.58407145]
[1753111664445,20.07887737,197.13,196.99,21.58407145]
[1753111664446,10.0,197.01,196.99,5.98634199]
[1753111664651,10.0,197.0,196.99,5.31634199]
[1753111664961,10.0,197.01,196.99,5.31634199]
[1753111665158,10.0,197.0,196.99,0.23994218]
[1753111665347,10.0,197.0,196.99,26.23994218]
[1753111665765,10.0,197.0,196.99,0.23994218]
[1753111665970,10.0,197.0,196.99,0.90994218]
[1753111666163,10.0,197.0,196.99,16.50767164]
[1753111666465,10.0,197.01,196.99,47.58407145]
[1753111666675,10.0,197.01,197.0,16.26772946]
[1753111666874,10.0,197.02,197.0,0.67]
[1753111667078,10.0,197.02,197.01,26.0]
[1753111667271,26.78468397,197.02,197.01,26.0]
[1753111667454,26.78468397,197.02,196.99,0.23994218]
[1753111667655,26.78468397,197.02,197.01,26.0]
[1753111668168,10.0,197.02,197.01,26.0]
[1753111668355,10.0,197.02,197.01,42.26772946]
[1753111668558,10.0,197.04,197.02,26.0]
[1753111669261,27.29512352,197.03,197.02,26.0]
[1753111669453,10.0,197.03,197.02,26.0]
[1753111669660,6.3448,197.12,197.02,50.27625629]
[1753111669661,7.7,197.04,197.02,50.27625629]
[1753111669857,7.7,197.14,197.06,26.0]
[1753111670057,7.7,197.12,197.07,0.5074339]
[1753111670275,0.51043955,197.16,197.11,15.59772946]
[1753111670276,8.21043955,197.16,197.11,15.59772946]
[1753111670588,7.7,197.21,197.15,15.59772946]
[1753111670767,7.7,197.21,197.12,16.10503465]
[1753111670969,7.7,197.22,197.12,16.10503465]
[1753111671286,8.21043955,197.21,197.18,15.59772946]
[1753111671464,7.7,197.19,197.18,15.59772946]
[1753111671669,7.7,197.21,197.18,20.66923772]
[1753111671869,7.7,197.22,197.2,15.59772946]
[1753111672065,7.7,197.22,197.21,41.59772946]
[1753111672676,9.00021001,197.25,197.21,41.59772946]
[1753111672857,7.7,197.24,197.22,15.59772946]
[1753111673064,7.7,197.23,197.22,15.59772946]
[1753111673366,0.69,197.24,197.22,15.59772946]
[1753111673583,9.51064956,197.25,197.21,5.07069411]
[1753111673782,7.7,197.22,197.21,5.07069411]
[1753111673992,7.7,197.24,197.21,15.59772946]
[1753111674177,7.7,197.22,197.2,5.07096252]
[1753111674373,9.51064956,197.25,197.2,5.07096252]
[1753111674374,8.21043955,197.24,197.2,5.07096252]
[1753111674576,7.7,197.22,197.2,26.0]
[1753111674886,7.7,197.22,197.16,38.84]
[1753111674887,8.21043955,197.24,197.19,26.0]
[1753111675061,7.7,197.22,197.19,26.0]
[1753111675257,17.47468397,197.21,197.19,26.0]
[1753111675461,16.10816901,197.24,197.12,5.07305194]
[1753111675462,24.48468397,197.19,197.12,5.07305194]
[1753111675657,38.78,197.24,197.02,36.74913419]
[1753111675658,16.78468397,197.15,197.1,15.59772946]
[1753111675877,7.7,197.13,197.11,15.59772946]
[1753111676072,0.69,197.14,197.11,15.59772946]
[1753111676073,7.7,197.12,197.11,15.59772946]
[1753111676259,7.7,197.13,197.11,15.59772946]
[1753111676476,7.7,197.12,197.1,15.59772946]
[1753111677011,7.7,197.13,197.11,15.59772946]
[1753111677487,7.7,197.13,197.1,15.59772946]
[1753111677796,7.7,197.13,197.12,15.59772946]
[1753111677966,16.28772946,197.18,197.12,15.59772946]
[1753111677967,7.7,197.14,197.12,15.59772946]
[1753111678160,7.7,197.14,197.13,15.59772946]
[1753111678382,7.7,197.12,197.11,15.59772946]
[1753111678584,7.7,197.12,197.1,46.67113198]
[1753111678889,7.7,197.12,197.1,31.07340252]
[1753111679088,7.7,197.12,197.02,34.44913419]
[1753111679089,8.90043955,197.11,197.04,5.07511165]
[1753111679389,7.7,197.08,197.05,15.59772946]
[1753111679586,7.7,197.08,197.04,5.07511165]
[1753111679587,7.7,197.08,197.07,41.59772946]